fUST/lending_fUST_20240424
["ID","MTS","AMOUNT","RATE_DAILY","PERIOD"]
[323348070,1713910238927,-500.0,0.00019178,2]
[323348072,1713910238936,-500.0,0.00019178,2]
[323348074,1713910238945,-500.0,0.00019178,2]
[323348076,1713910238954,-500.0,0.00019178,2]
[323348078,1713910238963,-583.992907,0.00019178,2]
[323348080,1713910238973,-500.0,0.00019178,2]
[323348082,1713910238982,-500.0,0.00019178,2]
[323348084,1713910238991,-546.90595198,0.00019178,2]
[323348086,1713910239001,-500.0,0.00019178,2]
[323348088,1713910239009,-500.0,0.00019178,2]
[323348090,1713910239018,-500.0,0.00019178,2]
[323348092,1713910239027,-500.0,0.00019178,2]
[323348094,1713910239036,-500.0,0.00019178,2]
[323348096,1713910239046,-500.0,0.00019178,2]
[323348098,1713910239055,-500.0,0.00019178,2]
[323348100,1713910239064,-500.0,0.00019178,2]
[323348102,1713910239073,-946.91,0.00019178,2]
[323348104,1713910239082,-714.27,0.00019178,2]
[323348106,1713910239091,-630.06,0.00019178,2]
[323348108,1713910239100,-500.0,0.00019178,2]
[323348110,1713910239109,-500.0,0.00019178,2]
[323348112,1713910239118,-500.0,0.00019178,2]
[323348114,1713910239127,-500.0,0.00019178,2]
[323348116,1713910239136,-500.0,0.00019178,2]
[323348118,1713910239145,-605.92294434,0.00019178,2]
[323348120,1713910239154,-493.03175138,0.00019178,2]
[323348122,1713910239163,-500.0,0.00019178,2]
[323348124,1713910239173,-500.0,0.00019178,2]
[323348126,1713910239182,-500.0,0.00019178,2]
[323348128,1713910239192,-500.0,0.00019178,2]
[323348130,1713910239202,-500.0,0.00019178,2]
[323348132,1713910239212,-500.0,0.00019178,2]
[323348134,1713910239221,-500.0,0.00019178,2]
[323348136,1713910239233,-500.0,0.00019178,2]
[323348138,1713910239243,-158.82858055,0.00019178,2]
[323348140,1713910239252,-500.0,0.00019178,2]
[323348142,1713910239261,-551.40486393,0.00019178,2]
[323348144,1713910239272,-500.0,0.00019178,2]
[323348146,1713910239281,-500.0,0.00019178,2]
[323348148,1713910239292,-500.0,0.00019178,2]
[323348151,1713910239302,-500.0,0.00019178,2]
[323348153,1713910239311,-500.0,0.00019178,2]
[323348154,1713910239321,-500.0,0.00019178,2]
[323348156,1713910239331,-500.0,0.00019178,2]
[323348158,1713910239340,-500.0,0.00019178,2]
[323348160,1713910239349,-500.0,0.00019178,2]
[323348162,1713910239358,-500.0,0.00019178,2]
[323348164,1713910239367,-500.0,0.00019178,2]
[323348166,1713910239376,-500.0,0.00019178,2]
[323348168,1713910239386,-500.0,0.00019178,2]
[323348171,1713910239396,-500.0,0.00019178,2]
[323348173,1713910239406,-500.0,0.00019178,2]
[323348175,1713910239415,-1909.41,0.00019178,2]
[323348177,1713910239424,-501.48050601,0.00019178,2]
[323348179,1713910239433,-500.0,0.00019178,2]
[323348181,1713910239443,-500.0,0.00019178,2]
[323348183,1713910239452,-500.0,0.00019178,2]
[323348185,1713910239462,-500.0,0.00019178,2]
[323348187,1713910239471,-500.0,0.00019178,2]
[323348189,1713910239480,-500.0,0.00019178,2]
[323348191,1713910239489,-500.0,0.00019178,2]
[323348193,1713910239498,-500.0,0.00019178,2]
[323348195,1713910239507,-500.0,0.00019178,2]
[323348197,1713910239517,-500.0,0.00019178,2]
[323348199,1713910239526,-500.0,0.00019178,2]
[323348201,1713910239537,-500.0,0.00019178,2]
[323348203,1713910239547,-505.67530964,0.00019178,2]
[323348205,1713910239558,-500.0,0.00019178,2]
[323348207,1713910239567,-502.74587075,0.00019178,2]
[323348209,1713910239577,-500.0,0.00019178,2]
[323348211,1713910239586,-500.0,0.00019178,2]
[323348213,1713910239596,-502.5839352,0.00019178,2]
[323348215,1713910239605,-505.28965278,0.00019178,2]
[323348217,1713910239614,-627.83520974,0.00019178,2]
[323348219,1713910239623,-500.0,0.00019178,2]
[323348221,1713910239632,-464.8522927,0.00019178,2]
[323348224,1713910239642,-200.96345925,0.00019178,2]
[323348227,1713910239651,-576.81,0.00019178,2]
[323348230,1713910239661,-500.0,0.00019178,2]
[323348233,1713910239670,-500.0,0.00019178,2]
[323348236,1713910239679,-500.0,0.00019178,2]
[323348239,1713910239688,-500.0,0.00019178,2]
[323348242,1713910239698,-500.0,0.00019178,2]
[323348245,1713910239707,-500.0,0.00019178,2]
[323348248,1713910239717,-500.0,0.00019178,2]
[323348250,1713910239726,-500.0,0.00019178,2]
[323348253,1713910239736,-500.0,0.00019178,2]
[323348256,1713910239746,-500.0,0.00019178,2]
[323348259,1713910239755,-500.0,0.00019178,2]
[323348263,1713910239765,-500.0,0.00019178,2]
[323348265,1713910239774,-500.0,0.00019178,2]
[323348268,1713910239783,-1416.02,0.00019178,2]
[323348271,1713910239794,-526.03,0.00019178,2]
[323348274,1713910239802,-500.0,0.00019178,2]
[323348277,1713910239812,-500.0,0.00019178,2]
[323348280,1713910239822,-566.78,0.00019178,2]
[323348283,1713910239831,-152.5171301,0.00019178,2]
[323348286,1713910239840,-500.0,0.00019178,2]
[323348289,1713910239849,-500.0,0.00019178,2]
[323348292,1713910239859,-306.88466694,0.00019178,2]
[323348295,1713910239868,-509.45276576,0.00019178,2]
[323348298,1713910239876,-500.0,0.00019178,2]
[323348301,1713910239885,-500.0,0.00019178,2]
[323348304,1713910239894,-1105.49,0.00019178,2]
[323348306,1713910239904,-500.0,0.00019178,2]
[323348309,1713910239913,-500.0,0.00019178,2]
[323348312,1713910239922,-254.83873137,0.00019178,2]
[323348315,1713910239931,-500.0,0.00019178,2]
[323348318,1713910239940,-500.0,0.00019178,2]
[323348321,1713910239949,-500.0,0.00019178,2]
[323348324,1713910239959,-500.0,0.00019178,2]
[323348327,1713910239967,-500.0,0.00019178,2]
[323348330,1713910239977,-500.0,0.00019178,2]
[323348333,1713910239986,-500.0,0.00019178,2]
[323348336,1713910239995,-500.0,0.00019178,2]
[323348339,1713910240004,-500.0,0.00019178,2]
[323348342,1713910240014,-500.0,0.00019178,2]
[323348345,1713910240023,-500.0,0.00019178,2]
[323348347,1713910240032,-500.0,0.00019178,2]
[323348349,1713910240044,-500.0,0.00019178,2]
[323348353,1713910240053,-500.0,0.00019178,2]
[323348356,1713910240062,-500.0,0.00019178,2]
[323348359,1713910240071,-500.0,0.00019178,2]
[323348362,1713910240079,-1020.19,0.00019178,2]
[323348363,1713910240088,-500.0,0.00019178,2]
[323348366,1713910240097,-500.0,0.00019178,2]
[323348369,1713910240106,-500.0,0.00019178,2]
[323348372,1713910240115,-500.0,0.00019178,2]
[323348405,1713910240268,-492.78831422,0.00019178,2]
[323348408,1713910240278,-178.20100148,0.00019178,2]
[323348411,1713910240289,-557.65,0.00019178,2]
[323348414,1713910240298,-500.0,0.00019178,2]
[323348417,1713910240309,-500.0,0.00019178,2]
[323348420,1713910240318,-1834.93,0.00019178,2]
[323348423,1713910240328,-500.0,0.00019178,2]
[323348426,1713910240336,-500.0,0.00019178,2]
[323348429,1713910240345,-534.78958072,0.00019178,2]
[323348432,1713910240354,-513.4026973,0.00019178,2]
[323348434,1713910240363,-664.78,0.00019178,2]
[323348437,1713910240372,-922.3,0.00019178,2]
[323348440,1713910240381,-557.81762977,0.00019178,2]
[323348443,1713910240391,-500.0,0.00019178,2]
[323348446,1713910240402,-500.0,0.00019178,2]
[323348450,1713910240411,-504.82378182,0.00019178,2]
[323348452,1713910240420,-622.76421091,0.00019178,2]
[323348454,1713910240429,-500.0,0.00019178,2]
[323348456,1713910240438,-500.0,0.00019178,2]
[323348458,1713910240447,-500.10261825,0.00019178,2]
[323348461,1713910240456,-500.0,0.00019178,2]
[323348463,1713910240465,-500.0,0.00019178,2]
[323348466,1713910240474,-500.0,0.00019178,2]
[323348469,1713910240483,-500.0,0.00019178,2]
[323348472,1713910240492,-500.0,0.00019178,2]
[323348476,1713910240501,-300.05130895,0.00019178,2]
[323348478,1713910240510,-500.0,0.00019178,2]
[323348481,1713910240519,-500.74986126,0.00019178,2]
[323348485,1713910240528,-500.0,0.00019178,2]
[323348488,1713910240539,-1578.63,0.00019178,2]
[323348490,1713910240548,-500.0,0.00019178,2]
[323348493,1713910240557,-906.4,0.00019178,2]
[323348497,1713910240566,-621.36724693,0.00019178,2]
[323348499,1713910240575,-500.0,0.00019178,2]
[323348502,1713910240584,-500.0,0.00019178,2]
[323348506,1713910240593,-500.0,0.00019178,2]
[323348507,1713910240602,-483.94318884,0.00019178,2]
[323348510,1713910240611,-500.0,0.00019178,2]
[323348512,1713910240620,-1074.24,0.00019178,2]
[323348515,1713910240629,-500.0,0.00019178,2]
[323348518,1713910240638,-500.0,0.00019178,2]
[323348522,1713910240649,-500.0,0.00019178,2]
[323348525,1713910240658,-500.0,0.00019178,2]
[323348528,1713910240667,-500.0,0.00019178,2]
[323348531,1713910240675,-500.0,0.00019178,2]
[323348534,1713910240684,-500.0,0.00019178,2]
[323348537,1713910240693,-500.0,0.00019178,2]
[323348540,1713910240702,-500.0,0.00019178,2]
[323348543,1713910240711,-500.0,0.00019178,2]
[323348546,1713910240720,-500.0,0.00019178,2]
[323348548,1713910240729,-500.0,0.00019178,2]
[323348551,1713910240737,-500.0,0.00019178,2]
[323348554,1713910240746,-554.96398746,0.00019178,2]
[323348557,1713910240756,-500.0,0.00019178,2]
[323348560,1713910240765,-507.17171376,0.00019178,2]
[323348563,1713910240775,-501.68120795,0.00019178,2]
[323348566,1713910240785,-500.0,0.00019178,2]
[323348569,1713910240793,-500.0,0.00019178,2]
[323348572,1713910240802,-500.0,0.00019178,2]
[323348575,1713910240812,-549.12,0.00019178,2]
[323348578,1713910240821,-500.0,0.00019178,2]
[323348579,1713910240831,-508.19405321,0.00019178,2]
[323348582,1713910240840,-500.0,0.00019178,2]
[323348585,1713910240849,-1566.57,0.00019178,2]
[323348588,1713910240859,-500.0,0.00019178,2]
[323348591,1713910240868,-519.3781021,0.00019178,2]
[323348594,1713910240877,-500.0,0.00019178,2]
[323348597,1713910240887,-500.0,0.00019178,2]
[323348600,1713910240896,-500.0,0.00019178,2]
[323348603,1713910240905,-500.0,0.00019178,2]
[323348606,1713910240914,-500.0,0.00019178,2]
[323348609,1713910240924,-588.17450781,0.00019178,2]
[323348612,1713910240933,-609.50589766,0.00019178,2]
[323348615,1713910240942,-500.0,0.00019178,2]
[323348618,1713910240951,-500.0,0.00019178,2]
[323348622,1713910240960,-500.0,0.00019178,2]
[323348625,1713910240969,-500.0,0.00019178,2]
[323348627,1713910240978,-553.83,0.00019178,2]
[323348629,1713910240987,-577.37,0.00019178,2]
[323348633,1713910240996,-785.16,0.00019178,2]
[323348636,1713910241005,-2169.26,0.00019178,2]
[323348638,1713910241014,-500.0,0.00019178,2]
[323348641,1713910241024,-500.0,0.00019178,2]
[323348644,1713910241033,-500.0,0.00019178,2]
[323348648,1713910241043,-500.0,0.00019178,2]
[323348650,1713910241052,-948.8,0.00019178,2]
[323348652,1713910241062,-500.0,0.00019178,2]
[323348654,1713910241071,-846.1,0.00019178,2]
[323348656,1713910241080,-500.0,0.00019178,2]
[323348658,1713910241088,-500.0,0.00019178,2]
[323348660,1713910241098,-500.0,0.00019178,2]
[323348662,1713910241107,-500.0,0.00019178,2]
[323348664,1713910241116,-1329.19,0.00019178,2]
[323348666,1713910241124,-500.0,0.00019178,2]
[323348668,1713910241134,-500.0,0.00019178,2]
[323348670,1713910241143,-500.0,0.00019178,2]
[323348672,1713910241152,-500.0,0.00019178,2]
[323348673,1713910241163,-500.0,0.00019178,2]
[323348675,1713910241173,-500.0,0.00019178,2]
[323348677,1713910241182,-500.0,0.00019178,2]
[323348679,1713910241193,-500.0,0.00019178,2]
[323348681,1713910241203,-500.0,0.00019178,2]
[323348684,1713910241213,-600.43351323,0.00019178,2]
[323348687,1713910241226,-228.59812908,0.00019178,2]
[323348690,1713910241236,-500.0,0.00019178,2]
[323348693,1713910241247,-500.0,0.00019178,2]
[323348696,1713910241257,-500.0,0.00019178,2]
[323348699,1713910241268,-904.36,0.00019178,2]
[323348702,1713910241278,-500.0,0.00019178,2]
[323348706,1713910241289,-500.0,0.00019178,2]
[323348709,1713910241299,-500.0,0.00019178,2]
[323348712,1713910241310,-500.0,0.00019178,2]
[323348715,1713910241321,-500.0,0.00019178,2]
[323348718,1713910241331,-500.0,0.00019178,2]
[323348721,1713910241341,-500.0,0.00019178,2]
[323348724,1713910241350,-500.0,0.00019178,2]
[323348727,1713910241360,-500.0,0.00019178,2]
[323348729,1713910241369,-500.0,0.00019178,2]
[323348731,1713910241378,-527.20962089,0.00019178,2]
[323348733,1713910241386,-500.0,0.00019178,2]
[323348735,1713910241396,-500.0,0.00019178,2]
[323348737,1713910241405,-500.0,0.00019178,2]
[323348740,1713910241414,-500.0,0.00019178,2]
[323348743,1713910241423,-500.0,0.00019178,2]
[323348745,1713910241432,-500.0,0.00019178,2]
[323348748,1713910241442,-501.23020246,0.00019178,2]
[323348751,1713910241450,-1764.77,0.00019178,2]
[323348754,1713910241460,-711.63,0.00019178,2]
[323348758,1713910241470,-500.0,0.00019178,2]
[323348761,1713910241479,-500.0,0.00019178,2]
[323348764,1713910241489,-500.0,0.00019178,2]
[323348767,1713910241499,-500.0,0.00019178,2]
[323348769,1713910241508,-500.0,0.00019178,2]
[323348772,1713910241518,-500.0,0.00019178,2]
[323348775,1713910241528,-423.90741455,0.00019178,2]
[323348777,1713910241540,-338.59205646,0.00019178,2]
[323348779,1713910241551,-500.0,0.00019178,2]
[323348781,1713910241562,-501.9183311,0.00019178,2]
[323348782,1713910241571,-758.44,0.00019178,2]
[323348783,1713910241582,-500.0,0.00019178,2]
[323348784,1713910241592,-500.0,0.00019178,2]
[323348786,1713910241601,-1000.67,0.00019178,2]
[323348788,1713910241610,-500.0,0.00019178,2]
[323348790,1713910241619,-2358.35,0.00019178,2]
[323348792,1713910241628,-500.0,0.00019178,2]
[323348794,1713910241638,-500.0,0.00019178,2]
[323348796,1713910241647,-500.0,0.00019178,2]
[323348798,1713910241656,-500.0,0.00019178,2]
[323348800,1713910241666,-500.0,0.00019178,2]
[323348801,1713910241676,-500.0,0.00019178,2]
[323348804,1713910241686,-544.60344,0.00019178,2]
[323348806,1713910241696,-268.08554988,0.00019178,2]
[323348807,1713910241706,-500.0,0.00019178,2]
[323348809,1713910241716,-500.0,0.00019178,2]
[323348811,1713910241727,-500.0,0.00019178,2]
[323348814,1713910241737,-500.0,0.00019178,2]
[323348815,1713910241748,-500.0,0.00019178,2]
[323348817,1713910241758,-500.0,0.00019178,2]
[323348819,1713910241768,-500.0,0.00019178,2]
[323348821,1713910241778,-500.0,0.00019178,2]
[323348823,1713910241788,-505.73894002,0.00019178,2]
[323348825,1713910241797,-500.0,0.00019178,2]
[323348826,1713910241806,-500.0,0.00019178,2]
[323348828,1713910241816,-500.0,0.00019178,2]
[323348830,1713910241826,-500.0,0.00019178,2]
[323348832,1713910241836,-504.78648204,0.00019178,2]
[323348834,1713910241846,-500.0,0.00019178,2]
[323348836,1713910241856,-500.0,0.00019178,2]
[323348838,1713910241865,-500.0,0.00019178,2]
[323348840,1713910241876,-500.0,0.00019178,2]
[323348842,1713910241886,-500.0,0.00019178,2]
[323348844,1713910241896,-500.0,0.00019178,2]
[323348846,1713910241906,-500.0,0.00019178,2]
[323348848,1713910241916,-500.0,0.00019178,2]
[323348850,1713910241928,-500.0,0.00019178,2]
[323348852,1713910241938,-500.0,0.00019178,2]
[323348854,1713910241948,-500.0,0.00019178,2]
[323348856,1713910241959,-3285.98,0.00019178,2]
[323348858,1713910241969,-500.0,0.00019178,2]
[323348860,1713910241979,-500.0,0.00019178,2]
[323348862,1713910241990,-500.0,0.00019178,2]
[323348864,1713910241999,-500.0,0.00019178,2]
[323348866,1713910242010,-738.98,0.00019178,2]
[323348868,1713910242020,-500.0,0.00019178,2]
[323348870,1713910242031,-501.17896974,0.00019178,2]
[323348872,1713910242043,-1480.8,0.00019178,2]
[323348874,1713910242053,-1744.31,0.00019178,2]
[323348876,1713910242063,-500.0,0.00019178,2]
[323348878,1713910242072,-1127.64,0.00019178,2]
[323348880,1713910242082,-1540.4,0.00019178,2]
[323348882,1713910242092,-1561.08,0.00019178,2]
[323348884,1713910242103,-500.0,0.00019178,2]
[323348886,1713910242113,-500.0,0.00019178,2]
[323348888,1713910242124,-500.0,0.00019178,2]
[323348890,1713910242133,-532.47,0.00019178,2]
[323348892,1713910242144,-500.0,0.00019178,2]
[323348894,1713910242154,-500.0,0.00019178,2]
[323348897,1713910242164,-500.0,0.00019178,2]
[323348898,1713910242175,-500.0,0.00019178,2]
[323348901,1713910242185,-500.0,0.00019178,2]
[323348902,1713910242194,-500.0,0.00019178,2]
[323348904,1713910242204,-500.0,0.00019178,2]
[323348907,1713910242215,-533.86,0.00019178,2]
[323348909,1713910242227,-512.65137034,0.00019178,2]
[323348911,1713910242239,-595.25,0.00019178,2]
[323348913,1713910242249,-1950.42,0.00019178,2]
[323348915,1713910242258,-786.89,0.00019178,2]
[323348917,1713910242267,-501.95518416,0.00019178,2]
[323348919,1713910242278,-1245.3,0.00019178,2]
[323348921,1713910242288,-500.0,0.00019178,2]
[323348923,1713910242297,-1200.35,0.00019178,2]
[323348925,1713910242307,-1035.68,0.00019178,2]
[323348927,1713910242316,-500.0,0.00019178,2]
[323348929,1713910242326,-500.0,0.00019178,2]
[323348931,1713910242335,-500.0,0.00019178,2]
[323348933,1713910242345,-588.44,0.00019178,2]
[323348934,1713910242354,-500.0,0.00019178,2]
[323348936,1713910242363,-500.0,0.00019178,2]
[323348939,1713910242373,-500.0,0.00019178,2]
[323348941,1713910242382,-500.0,0.00019178,2]
[323348943,1713910242392,-500.0,0.00019178,2]
[323348945,1713910242401,-500.0,0.00019178,2]
[323348947,1713910242410,-500.0,0.00019178,2]
[323348949,1713910242420,-500.0,0.00019178,2]
[323348951,1713910242429,-1079.85,0.00019178,2]
[323348953,1713910242438,-500.0,0.00019178,2]
[323348955,1713910242447,-500.0,0.00019178,2]
[323348957,1713910242457,-500.0,0.00019178,2]
[323348959,1713910242466,-500.0,0.00019178,2]
[323348961,1713910242475,-500.0,0.00019178,2]
[323348963,1713910242485,-500.0,0.00019178,2]
[323348965,1713910242494,-500.0,0.00019178,2]
[323348967,1713910242504,-500.0,0.00019178,2]
[323348969,1713910242513,-500.0,0.00019178,2]
[323348971,1713910242522,-500.0,0.00019178,2]
[323348973,1713910242531,-500.0,0.00019178,2]
[323348975,1713910242541,-500.0,0.00019178,2]
[323348977,1713910242550,-500.0,0.00019178,2]
[323348979,1713910242559,-395.67,0.00019178,2]
[323348981,1713910242569,-151.0,0.00019178,2]
[323348983,1713910242578,-500.0,0.00019178,2]
[323348986,1713910242587,-700.15,0.00019178,2]
[323348988,1713910242596,-441.84671989,0.00019178,2]
[323348990,1713910242605,-522.4,0.00019178,2]
[323348993,1713910242614,-3544.7,0.00019178,2]
[323348996,1713910242623,-543.78,0.00019178,2]
[323348998,1713910242632,-1851.43,0.00019178,2]
[323349001,1713910242642,-500.0,0.00019178,2]
[323349004,1713910242651,-500.0,0.00019178,2]
[323349006,1713910242662,-387.84950899,0.00019178,2]
[323349008,1713910242671,-500.0,0.00019178,2]
[323349010,1713910242680,-940.04,0.00019178,2]
[323349012,1713910242689,-500.0,0.00019178,2]
[323349014,1713910242698,-1115.68,0.00019178,2]
[323349016,1713910242707,-2071.73172094,0.00019178,2]
[323349080,1713910243161,-1431.58436728,0.00019178,2]
[323349082,1713910243173,-177.69391178,0.00019178,2]
[323349084,1713910243183,-1312.98,0.00019178,2]
[323349086,1713910243192,-1418.67,0.00019178,2]
[323349088,1713910243201,-790.41820565,0.00019178,2]
[323349125,1713910243559,-60.70179435,0.00019178,2]
[323349126,1713910243568,-500.0,0.00019178,2]
[323349127,1713910243578,-500.0,0.00019178,2]
[323349128,1713910243588,-500.0,0.00019178,2]
[323349129,1713910243598,-500.0,0.00019178,2]
[323349130,1713910243607,-6013.27080691,0.00019178,2]
[323349131,1713910243619,-1147.15919309,0.00019178,2]
[323349132,1713910243628,-500.0,0.00019178,2]
[323349133,1713910243638,-500.0,0.00019178,2]
[323349134,1713910243647,-500.0,0.00019178,2]
[323349135,1713910243657,-500.0,0.00019178,2]
[323349136,1713910243669,-500.0,0.00019178,2]
[323349137,1713910243679,-500.0,0.00019178,2]
[323349139,1713910243688,-6738.46,0.00019178,2]
[323349141,1713910243697,-522.04364305,0.00019178,2]
[323349143,1713910243706,-500.0,0.00019178,2]
[323349145,1713910243714,-1347.42,0.00019178,2]
[323349147,1713910243723,-227.92711408,0.00019178,2]
[323349148,1713910243733,-5043.59,0.00019178,2]
[323349150,1713910243742,-2088.28,0.00019178,2]
[323349152,1713910243751,-500.0,0.00019178,2]
[323349154,1713910243760,-500.0,0.00019178,2]
[323349157,1713910243770,-500.0,0.00019178,2]
[323349159,1713910243779,-600.28,0.00019178,2]
[323349160,1713910243789,-1114.88,0.00019178,2]
[323349162,1713910243798,-500.0,0.00019178,2]
[323349164,1713910243807,-500.0,0.00019178,2]
[323349166,1713910243815,-500.0,0.00019178,2]
[323349168,1713910243824,-581.13,0.00019178,2]
[323349170,1713910243834,-789.18,0.00019178,2]
[323349172,1713910243844,-500.0,0.00019178,2]
[323349174,1713910243853,-1517.45,0.00019178,2]
[323349176,1713910243862,-2379.28,0.00019178,2]
[323349178,1713910243872,-500.0,0.00019178,2]
[323349180,1713910243881,-500.0,0.00019178,2]
[323349182,1713910243890,-500.0,0.00019178,2]
[323349184,1713910243899,-500.0,0.00019178,2]
[323349186,1713910243908,-1345.18,0.00019178,2]
[323349188,1713910243917,-594.33798587,0.00019178,2]
[323349190,1713910243927,-682.93,0.00019178,2]
[323349192,1713910243936,-867.9,0.00019178,2]
[323349194,1713910243945,-780.37,0.00019178,2]
[323349196,1713910243955,-500.0,0.00019178,2]
[323349198,1713910243964,-660.92,0.00019178,2]
[323349200,1713910243973,-500.0,0.00019178,2]
[323349202,1713910243982,-905.14,0.00019178,2]
[323349204,1713910243992,-500.0,0.00019178,2]
[323349206,1713910244001,-500.0,0.00019178,2]
[323349208,1713910244011,-500.0,0.00019178,2]
[323349210,1713910244020,-500.0,0.00019178,2]
[323349212,1713910244029,-500.0,0.00019178,2]
[323349214,1713910244039,-654.94,0.00019178,2]
[323349216,1713910244049,-500.0,0.00019178,2]
[323349218,1713910244058,-2339.28,0.00019178,2]
[323349220,1713910244068,-500.0,0.00019178,2]
[323349222,1713910244076,-500.0,0.00019178,2]
[323349224,1713910244086,-500.0,0.00019178,2]
[323349226,1713910244095,-500.0,0.00019178,2]
[323349228,1713910244105,-500.40535893,0.00019178,2]
[323349230,1713910244114,-500.0,0.00019178,2]
[323349232,1713910244124,-23249.42,0.00019178,2]
[323349234,1713910244134,-500.0,0.00019178,2]
[323349236,1713910244143,-500.0,0.00019178,2]
[323349238,1713910244153,-500.0,0.00019178,2]
[323349240,1713910244163,-500.0,0.00019178,2]
[323349242,1713910244172,-500.0,0.00019178,2]
[323349244,1713910244181,-500.0,0.00019178,2]
[323349246,1713910244192,-953.63,0.00019178,2]
[323349248,1713910244201,-500.0,0.00019178,2]
[323349250,1713910244210,-500.0,0.00019178,2]
[323349252,1713910244220,-7155.5,0.00019178,2]
[323349254,1713910244233,-728.51,0.00019178,2]
[323349256,1713910244242,-1133.21,0.00019178,2]
[323349258,1713910244251,-883.4,0.00019178,2]
[323349260,1713910244261,-1841.41,0.00019178,2]
[323349262,1713910244271,-193.79661707,0.00019178,2]
[323349453,1713910246149,-2318.95338293,0.00019178,2]
[323349455,1713910246158,-500.0,0.00019178,2]
[323349457,1713910246168,-6651.14,0.00019178,2]
[323349459,1713910246177,-2982.11,0.00019178,2]
[323349461,1713910246186,-10074.59173706,0.00019178,2]
[323349464,1713910246203,-323.64318653,0.00019178,2]
[323350373,1713910256290,276.87957595,0.00011,2]
[323352322,1713910277489,196.01964895,0.00011,2]
[323353018,1713910506078,1500.0,0.0002,10]
[323353024,1713911021923,150.0,0.00024,120]
[323353067,1713911432646,-527.255357,0.00014719,2]
[323353068,1713911432655,-154.82968734,0.0001472,2]
[323353069,1713911432665,-927.73627561,0.00014721,2]
[323353070,1713911432674,-154.82968734,0.00014721,2]
[323353071,1713911432684,-300.0,0.00014728,2]
[323353072,1713911432693,-300.0,0.00014728,2]
[323353073,1713911432702,-157.03688122,0.00015,2]
[323353074,1713911432711,-154.82968734,0.00015,2]
[323353075,1713911432721,-2099.47208497,0.00015,2]
[323353076,1713911432730,-312.61134477,0.00015,2]
[323353077,1713911432740,-1675.82446385,0.00015,2]
[323353078,1713911432749,-2775.48792824,0.00015,2]
[323353079,1713911432758,-154.82968734,0.00015148,2]
[323353080,1713911432767,-938.58206509,0.00015149,2]
[323353081,1713911432777,-628.221272,0.0001515,2]
[323353082,1713911432786,-691.084101,0.00015154,2]
[323353083,1713911432795,-420.0,0.00016123,2]
[323353084,1713911432804,-420.0,0.00016201,2]
[323353085,1713911432815,-24900.0,0.00016392,2]
[323353086,1713911432825,-272.57129579,0.000165,2]
[323353087,1713911432834,-587.0,0.00017651,2]
[323353088,1713911432843,-587.0,0.00017821,2]
[323353089,1713911432852,-306.0,0.00018752,2]
[323353090,1713911432861,-3384.66457059,0.00018899,2]
[323353091,1713911432871,-4643.70176005,0.000189,2]
[323353092,1713911432880,-189.19295912,0.0001897,2]